Cogmind - Beta 13 @@@ ROGUE MODE // 2024.04.01 @ 22:28:34 Player: garpas Result: Destroyed by G-34 Mercenary with Small Laser Performance ------------- Evolutions (1) 500 Regions Visited (3) 600 Robots Destroyed (39) 195 Value Destroyed (979) 979 Prototype IDs (0) 0 Alien Tech Used (0) 0 Bonus (48) 48 TOTAL SCORE: 2322 Bonus ------- High Alert Combat Kills 48 Cogmind --------- Core Integrity 0/400 Matter 470/500 Energy 91/100 System Corruption 0% Temperature Cool (16) Movement Treading (160) Location -9/Materials Parts ------- > --- POWER (1) -------- (None) > --- PROPULSION (2) --- Light Treads Aluminum Leg > --- UTILITY (2) ------ High-capacity Matter Pod Utility Shielding > --- WEAPON (4) ------- Beam Rifle Light Assault Rifle > --- INVENTORY (5) ---- Small Storage Unit Medium Storage Unit Peak State ------------ > --- POWER ------------ Light Ion Engine > --- PROPULSION ------- Aluminum Leg Wheel > --- UTILITY ---------- High-capacity Matter Pod Utility Shielding > --- WEAPON ----------- Makeshift Shrapnel Gun Rocket Launcher > --- INVENTORY -------- Aluminum Leg Small Storage Unit Medium Storage Unit Small Laser Light Assault Rifle [Rating: 11] Favorites ----------- Power Light Ion Engine Engine Light Ion Engine Propulsion Wheel Treads Light Treads Leg Aluminum Leg Wheel Wheel Utility High-capacity Matter Pod Storage High-capacity Matter Pod Protection Utility Shielding Weapon Light Assault Rifle Energy Gun Small Laser Ballistic Gun Light Assault Rifle Launcher Rocket Launcher Build | -11 -10 -10 -9 ------- Run | Yrd Mat Min Mat Slots Evolved 2 | . . . 2 Power . | . . . . Propulsion . | . . . . Utility . | . . . . Weapon 2 | . . . 2 Parts Attached 26 | 5 8 3 10 Power 2 | 1 1 . . Engine 2 | 1 1 . . Core . | . . . . Reactor . | . . . . Propulsion 7 | 2 1 1 3 Treads 1 | . . . 1 Leg 4 | . 1 1 2 Wheel 2 | 2 . . . Hover . | . . . . Flight . | . . . . Utility 4 | . 4 . . Device . | . . . . Storage 3 | . 3 . . Processor . | . . . . Hackware . | . . . . Protection 1 | . 1 . . Artifact . | . . . . Weapon 13 | 2 2 2 7 Energy Gun 5 | 1 1 . 3 Energy Cannon . | . . . . Ballistic Gun 6 | 1 1 1 3 Ballistic Cannon . | . . . . Launcher 2 | . . 1 1 Special Weapon . | . . . . Impact Weapon . | . . . . Slashing Weapon . | . . . . Piercing Weapon . | . . . . Special Melee Weapon . | . . . . Unidentified Prototypes . | . . . . Parts Lost 15 | . 4 . 11 Power 2 | . 1 . 1 Propulsion 4 | . 1 . 3 Utility . | . . . . Weapon 9 | . 2 . 7 Highest Loss Streak 5 | . 2 . 5 To Critical Strikes . | . . . . Average Slot Usage (%) 82 | . 84 100 71 Engine 8 | . 11 14 4 Leg 10 | . 8 14 9 Wheel 9 | . 18 14 4 Storage 12 | . 16 14 11 Protection 10 | . 3 14 11 Energy Gun 7 | . 10 5 7 Ballistic Gun 14 | . 13 9 18 Launcher 6 | . . 13 4 Naked Turns . | . . . . Heaviest Build 19 | 7 19 14 14 Greatest Support 20 | 20 20 10 20 Greatest Overweight (x) 4 | . 1 4 2 Average Overweight (x) . | . . . . Largest Inventory Capacity 10 | 5 10 5 5 Average Capacity 5 | 5 8 5 5 Most Carried 5 | 1 2 5 5 Average Carried 3 | . 1 4 3 Final Capacity 5 | 5 5 5 5 Final Carried 5 | . 2 5 2 Class Distribution -------------------- 61% | Mutant 17% | Scavenger-Tank 11% | Scavenger-Mutant 7% | Tank Dominant Class ---------------- Scavenger-Mutant | -10/Materials Mutant | -10/Mines Mutant | -9/Materials Resources | -11 -10 -10 -9 ----------- Run | Yrd Mat Min Mat Matter Collected 1015 | 268 178 226 343 Remotely . | . . . . Salvage Created 1069 | 33 207 40 789 Parts 82 | 2 13 6 61 Haulers Intercepted . | . . . . Recyclers Shooed 2 | . . . 2 Parts Field Recycled . | . . . . Retrieved Matter . | . . . . Parts Self-Destructed . | . . . . Prevented . | . . . . Kills | -11 -10 -10 -9 ------- Run | Yrd Mat Min Mat Combat Hostiles Destroyed 35 | 1 7 2 25 Guns 31 | 1 7 2 21 AOE 4 | . . . 4 Classes Destroyed 6 | 1 1 . 4 Builder 1 | . . . 1 Watcher 3 | . . . 3 Swarmer 17 | . 3 2 12 Grunt 9 | 1 4 . 4 Duelist 1 | . . . 1 Sentry 8 | . . . 8 Best Kill Streak 7 | 1 7 2 6 Combat Bots Only 7 | 1 7 2 5 Max Kills in Single Turn 2 | 1 1 1 2 Gunslinging 1 | . . . 1 Exploded 1 | . . . 1 Melee . | . . . . Uniques/NPCs Destroyed . | . . . . Combat | -11 -10 -10 -9 -------- Run | Yrd Mat Min Mat Hostile Shots Fired 199 | 5 48 7 139 Missed 53 | 1 9 2 41 Damage Taken 1787 | 46 400 40 1301 Core 533 | 11 106 16 400 Absorbed by Shields . | . . . . Redirected to Shielding 5 | . . . 5 Core Remaining (%) 70 | 95 . 46 . Volleys Fired 130 | 6 42 3 79 Largest 4 | 1 2 2 4 Hottest 152 | 20 60 60 152 Shots Fired 270 | 6 45 6 213 Gun 257 | 6 45 6 200 Cannon . | . . . . Launcher 13 | . . . 13 Special . | . . . . Kinetic 191 | 6 39 3 143 Thermal 66 | . 6 3 57 Explosive 13 | . . . 13 Electromagnetic . | . . . . Robot Hit Streak 16 | 4 8 4 16 Robot Miss Streak 7 | 2 3 1 7 Penetration Max . | . . . . Secondary Targets 5 | . . 1 4 Max Gunslinging Chain 1 | . . 1 1 Shots Hit Robots 150 | 4 27 4 115 Core Hits 73 | 2 14 3 54 Critical Kills . | . . . . Critical Parts Destroyed 1 | . . . 1 Critical Strikes 2 | . . . 2 Burn 1 | . . . 1 Destroy 1 | . . . 1 Melee Attacks . | . . . . Impact . | . . . . Slashing . | . . . . Piercing . | . . . . Sneak Attacks . | . . . . Combat Hostiles . | . . . . Follow-up Attacks . | . . . . Damage Inflicted 2192 | 47 357 39 1749 Guns 1670 | 47 357 39 1227 Cannons . | . . . . Explosions 506 | . . . 506 Melee . | . . . . Ramming 16 | . . . 16 Kinetic 1196 | 47 325 16 808 Thermal 474 | . 32 23 419 Explosive 506 | . . . 506 Electromagnetic . | . . . . Impact . | . . . . Slashing . | . . . . Piercing . | . . . . Highest Corruption . | . . . . Average Corruption . | . . . . Corruption Purged . | . . . . Corruption Blocked . | . . . . Overload Shots . | . . . . Overflow Damage . | . . . . Projectiles . | . . . . Explosions . | . . . . Melee . | . . . . Knockbacks . | . . . . Impact . | . . . . Kinetic . | . . . . Secondary . | . . . . Self-Inflicted Damage 32 | . . . 32 Shots 1 | . . . 1 Rammed 1 | . . . 1 Targets Rammed 8 | . . . 8 Kicked 7 | . . . 7 Crushed . | . . . . Highest Temperature 358 | . 20 20 358 Average Temperature 76 | . 9 15 82 Received Heat Transfer 495 | 24 153 . 318 Siege Activations . | . . . . Robots Corrupted . | . . . . Combat Hostiles . | . . . . Parts Fried . | . . . . Impact Corruptions . | . . . . Robots Melted . | . . . . Combat Hostiles . | . . . . Parts Melted 4 | . . . 4 Heat Transferred 1239 | . 75 50 1114 Parts Sabotaged . | . . . . Parts Stolen . | . . . . Parts Stripped . | . . . . Power Chain Reactions . | . . . . Alert | -11 -10 -10 -9 ------- Run | Yrd Mat Min Mat Peak Influence 479 | 20 178 109 479 Initial 69 | . 13 69 . Average 176 | 3 109 68 272 Maximum Alert Level 2 | . . . 2 Low Security (%) 62 | 100 100 100 27 Level 1 25 | . . . 49 Level 2 11 | . . . 23 Level 3 . | . . . . Level 4 . | . . . . Level 5 . | . . . . High Security . | . . . . Max Security . | . . . . Squads Dispatched 6 | . 1 . 5 Investigation 2 | . 1 . 1 Extermination . | . . . . Reinforcement 4 | . . . 4 Assault . | . . . . Garrison . | . . . . Intercept . | . . . . Searches Triggered . | . . . . Construction Impeded 2 | . . . 2 Haulers Reinforced . | . . . . Active Scanning Responses . | . . . . Cargo Convoy Interrupts . | . . . . Stealth | -11 -10 -10 -9 --------- Run | Yrd Mat Min Mat Distress Signals 3 | . 1 . 2 Communications Jammed . | . . . . Distress Signals . | . . . . Times Spotted 58 | 1 13 3 41 Peak Tracking Total 7 | 1 7 2 6 Tactical Retreats 1 | . . . 1 Traps | -11 -10 -10 -9 ------- Run | Yrd Mat Min Mat Traps Triggered 1 | . . . 1 Indirectly . | . . . . Trap Hack Attempts . | . . . . Triggered . | . . . . Disarmed . | . . . . Reprogrammed . | . . . . Reused . | . . . . Traps Extracted . | . . . . Installed . | . . . . Triggered . | . . . . Machines | -11 -10 -10 -9 ---------- Run | Yrd Mat Min Mat Machines Disabled 3 | . . . 3 Max in Single Turn 2 | . . . 2 Machines Repaired . | . . . . Machines Dismantled . | . . . . Machines Sabotaged . | . . . . Overloaded Fab Kills . | . . . . Hacking | -11 -10 -10 -9 --------- Run | Yrd Mat Min Mat Machines Accessed 3 | . 1 . 2 Terminals 2 | . 1 . 1 Fabricators . | . . . . Repair Stations 1 | . . . 1 Recycling Units . | . . . . Scanalyzers . | . . . . Garrison Access . | . . . . Total Hacks 8 | . 3 . 5 Successful 4 | . 2 . 2 Failed 4 | . 1 . 3 Catastrophic 1 | . 1 . . Database Lockouts . | . . . . Manual 1 | . . . 1 Terminals 6 | . 3 . 3 Fabricators . | . . . . Repair Stations 2 | . . . 2 Recycling Units . | . . . . Scanalyzers . | . . . . Garrison Access . | . . . . Terminal Hacks 4 | . 2 . 2 Alert Level 2 | . 1 . 1 Dispatch Records 1 | . 1 . . Maintenance Status 1 | . . . 1 Fabricator Hacks . | . . . . Repair Station Hacks . | . . . . Recycling Unit Hacks . | . . . . Scanalyzer . | . . . . Garrison Access Hacks . | . . . . Unauthorized Hacks . | . . . . Terminals . | . . . . Fabricators . | . . . . Repair Stations . | . . . . Recycling Units . | . . . . Scanalyzers . | . . . . Garrison Access . | . . . . Data Cores Recovered . | . . . . Used . | . . . . Hacking Detections 2 | . 1 . 1 Full Trace Events 2 | . 1 . 1 Feedback Events . | . . . . Feedback Blocked . | . . . . Robot Schematics Acquired . | . . . . Robots Built . | . . . . Authchips . | . . . . Time . | . . . . Total Robot Build Rating . | . . . . Part Schematics Acquired . | . . . . Parts Built . | . . . . Authchips . | . . . . Time . | . . . . Total Part Build Rating . | . . . . Parts Repaired . | . . . . Time . | . . . . Parts Recycled . | . . . . Recycled Matter . | . . . . Retrieved Matter . | . . . . Retrieved Components . | . . . . Parts Scanalyzed . | . . . . Part Schematics Acquired . | . . . . Parts Damaged . | . . . . Bothacking | -11 -10 -10 -9 ------------ Run | Yrd Mat Min Mat Used RIF Installer . | . . . . Robots Hacked . | . . . . Non-combat . | . . . . Combat . | . . . . Robot Hacks Applied . | . . . . Relay Couplers Released . | . . . . Fabnet Peak Effective % . | . . . . Robots Rewired . | . . . . Allies Hacked . | . . . . Hacks Repelled . | . . . . Allies | -11 -10 -10 -9 -------- Run | Yrd Mat Min Mat Total Allies . | . . . . Largest Group . | . . . . Highest-Rated Group . | . . . . Highest-Rated Ally . | . . . . Total Orders . | . . . . Ally Attacks . | . . . . Total Damage . | . . . . Kills . | . . . . Allies Corrupted . | . . . . Allies Melted . | . . . . Intel | -11 -10 -10 -9 ------- Run | Yrd Mat Min Mat Robot Analysis Total . | . . . . Derelict Logs Recovered 1 | . . 1 . Drone Launches . | . . . . Drone Recoveries . | . . . . Exploration | -11 -10 -10 -9 ------------- Run | Yrd Mat Min Mat Turns Passed 2050 | 73 287 636 1054 Spaces Moved 1154 | 71 197 377 509 Core 85 | 18 . 1 66 Treads 23 | . . . 23 Legs 702 | . . 282 420 Wheels 344 | 53 197 94 . Hover . | . . . . Flight . | . . . . Fastest Speed 50 | 50 80 80 100 Average Speed 143 | 72 85 164 159 Slowest Speed 250 | 80 95 250 190 Overloaded Moves . | . . . . Propulsion Burnouts . | . . . . Robots Hopped . | . . . . Cave-ins Triggered . | . . . . Exploration Rate (%) 40 | 7 20 79 56 Regions Visited 3 Branch Regions 1 Pre-discovered Areas 1 | . . 1 . Known Exits Taken . | . . . . Unknown Exits Taken 3 | 1 1 1 . Scrap Searched 1 | . . 1 . Spaces Dug . | . . . . Terrain Destroyed 108 | . . . 108 Melee . | . . . . Projectile . | . . . . AOE 108 | . . . 108 Terrain Rammed . | . . . . Walls Destroyed . | . . . . Machines Disabled . | . . . . Actions | -11 -10 -10 -9 --------- Run | Yrd Mat Min Mat Total 1356 | 86 270 385 615 Wait 15 | . 15 . . Move 1151 | 70 196 376 509 Hop . | . . . . Pick Up 24 | 5 8 3 8 Fast Attach . | . . . . Attach 22 | 5 7 . 10 Detach 1 | . 1 . . Swap 4 | . 1 3 . Drop 1 | . . . 1 Fire 130 | 6 42 3 79 Melee . | . . . . Ram 1 | . . . 1 Kick 7 | . . . 7 Crush . | . . . . Escape Stasis . | . . . . Rewire . | . . . . Trap . | . . . . Miscellaneous . | . . . . Route ------- -11/Scrapyard -10/Materials -10/Mines (discovered 2 exits: *Mat x2) -9/Materials (discovered 1 exit: [*Min]) History --------- Turn | Location | Event 2 | -11/Scrapyard | Met Revision 17 48 | -11/Scrapyard | Discovered new exit (range 8) 74 | -11/Scrapyard | Entered Materials 231 | -10/Materials | Destroyed 7 combat bots 257 | -10/Materials | Discovered new exit (range 15) 361 | -10/Materials | Entered Mines 366 | -10/Mines | Core integrity fell below 50% 398 | -10/Mines | Received a Rocket Launcher from a helpful Derelict 498 | -10/Mines | Assembled infested the area 503 | -10/Mines | Assisted by a Guerilla fighting off Assembled 615 | -10/Mines | A weapon hastily lodged in a ceiling crevice suddenly fell to the ground 678 | -10/Mines | Discovered new exit (range 7) 698 | -10/Mines | Build established: Mutant 819 | -10/Mines | Discovered new exit (range 6) 836 | -10/Mines | Learned location of Zion (-7) 997 | -10/Mines | Entered Materials 997 | -9/Materials | Evolved 2 slots: Weapon x2 1437 | -9/Materials | Lost 5 parts (1p2n2w) 1596 | -9/Materials | Core integrity fell below 50% 1774 | -9/Materials | Core integrity fell below 20% 1803 | -9/Materials | Discovered new exit (range 12) 1807 | -9/Materials | Lost 3 parts (1n2w) 2051 | -9/Materials | Destroyed by G-34 Mercenary with Small Laser Last Messages --------------- Investigation squad. W-16 Scout destroyed. Kicked A-02 Transporter. Kicked U-05 Engineer. Beam Rifle destroyed. Imp. Ion Engine melted. Y-45 Defender destroyed. Want a larger map view with more modal windows? Or have a large enough display to fit a bigger map in exchange for smaller text? Consider selecting a different UI Layout in the option menu. K-01 Serf collects debris. Acquired Lgt. Treads. K-01 Serf collects debris. O-16 Technician: "IFF HANDSHAKE FAILED. SECURING TERMINAL." K-01 Serf collects debris. ALERT: Hostiles spotted, dispatching reinforcements to Terminal M002. K-01 Serf collects debris. Lgt. Assault Rifle destroyed. S-10 Pest destroyed. [Achievement: First Step to Greatness] Map ----- +----------------------------------------------------+ | | | | | | | | | | | | | | | | | | | | | | | | | | | | | | | | | | | | | | | | | | | ?????????????????????????#####???????????????????? | | ????????????????????????# #???????????????????? | | ????????????????????????# #???????????????????? | | ????????????????????????# #???????????????????? | | ????????????????????????#@[ #???????????????????? | | ????????????????????????# %s #??????##########???? | | ????????????????????????###g###????? #???? | | ??????????????????####### #????? #???? | | ?????????????? ###### #???? | | ????????????? T #???? | | ?????????????? ### #???? | | ??????????????###+####### #?# !!! #???? | | ????????????????????????### ###?# !! #???? | | ??????????????????????????#+#???# !! #???? | | ?????????????????????????#??????# ###?# | | ?????????????????????????# ????# | | ?????????????????????????# ""??# ##### | | ?????????????????????????# # [ #???? | | ?????????????????????????# + #####+###???? | | ?????????????????????????#/ # ####???????????? | | ?????????????????????????######## ###????????????? | | ??????????????????###########?# #????????????? | | ??????????????????# ### ! #????????????? | | ??????????????????# + % #????????????? | | ??????????????????# ### [ #????????????? | | ??????????????????# #?# #????????????? | | ??????????????????# #?## ##????????????? | | ??????????????????# #??# #?????????????? | | ??????????????????# #??# #?????????????? | +----------------------------------------------------+ Best States ------------- Heat Dissipation 28 Energy Generation 10 Energy Capacity 125 Matter Stores 500 Matter Capacity 500 Sight Range 16 Terrain Scan Density 10 Utility Shielding 33 Evasion (%) 55 Recoil Reduction 1 Item Schematics ----------------- None Robot Schematics ------------------ None Fabricated ------------ Nothing Alien Tech Used ----------------- None Achievements -------------- Crack Shot First Step to Greatness One Hack Too Far Storm Trooper Uninvited Guest Challenges ------------ None Game ------ Seed CobblerScatterLance Manual? 0 Play Time 00:56:56 Cumulative 0.9 hours Start 2024.04.01 @ 21:24:18 End 2024.04.01 @ 22:28:34 Sessions 1 Manual Loads 0 Difficulty Rogue Special Mode None Game No. 1 Rogue 1 Adventurer 0 Explorer 0 Win Type - Total 0 Types 0/0/0/0/0/0/0/0/0 Lore% 0 Gallery% 1 Achievement% 1 Wizard Run 0 Options --------- Layout 1 ASCII 0 Keyboard 0 Movement Mouse Keybinds 0 Fullscreen 1 Font 32/SmallcapsGlow Map View 77x35 Zoom Use 0% Tactical HUD 0 Map Filters NONE Filters NONE Steam 1 RUN: 15bfb84a-977a-4ece-a782-65eeb2fad718